Cogmind - Beta 9.6 @@@ ROGUE MODE // 2020.05.11 @ 10:37:08 Player: 3.14 Result: Self-destructed Performance ------------- Evolutions (1) 500 Regions Visited (3) 600 Robots Destroyed (13) 65 Value Destroyed (231) 231 Prototype IDs (0) 0 Alien Tech Used (0) 0 Bonus (0) 0 TOTAL SCORE: 1396 Bonus ------- None Cogmind --------- Core Integrity 378/400 Matter 247/300 Energy 125/125 System Corruption 0% Temperature Cool (0) Movement Walking (150) Ox1 Location -9/Materials Parts ------- > --- POWER (1) -------- Light Ion Engine > --- PROPULSION (2) --- Aluminum Leg Aluminum Leg > --- UTILITY (4) ------ Improved Heat Sink Small Storage Unit Large Storage Unit > --- WEAPON (2) ------- Axe Axe > --- INVENTORY (12) --- Ion Engine Aluminum Leg Aluminum Leg Aluminum Leg Aluminum Leg Improved Heat Sink High-capacity Matter Pod (40) Light Assault Rifle Light Assault Rifle Light Assault Rifle Axe Axe Peak State ------------ > --- POWER ------------ Light Ion Engine > --- PROPULSION ------- Aluminum Leg Aluminum Leg > --- UTILITY ---------- Improved Heat Sink Small Storage Unit Large Storage Unit > --- WEAPON ----------- Axe Axe > --- INVENTORY -------- Ion Engine Aluminum Leg Aluminum Leg Aluminum Leg Aluminum Leg Improved Heat Sink High-capacity Matter Pod Light Assault Rifle Light Assault Rifle Light Assault Rifle [Rating: 15] Favorites ----------- Power Light Ion Engine Engine Light Ion Engine Propulsion Light Treads Treads Light Treads Leg Aluminum Leg Utility Small Storage Unit Device Heat Sink Storage Small Storage Unit Weapon Light Assault Rifle Energy Gun Medium Laser Ballistic Gun Light Assault Rifle Slashing Weapon Axe Build | -11 -10 -10 -9 ------- Run | Scr Mat Min Mat Slots Evolved 2 | . . . 2 Power . | . . . . Propulsion . | . . . . Utility 2 | . . . 2 Weapon . | . . . . Parts Attached 19 | 7 2 2 8 Power 1 | 1 . . . Engine 1 | 1 . . . Core . | . . . . Reactor . | . . . . Propulsion 6 | 2 1 . 3 Treads 4 | 2 1 . 1 Leg 2 | . . . 2 Wheel . | . . . . Hover . | . . . . Flight . | . . . . Utility 5 | 2 1 . 2 Device 2 | . . . 2 Storage 3 | 2 1 . . Processor . | . . . . Hackware . | . . . . Protection . | . . . . Artifact . | . . . . Weapon 7 | 2 . 2 3 Energy Gun 1 | . . . 1 Energy Cannon . | . . . . Ballistic Gun 4 | 2 . 2 . Ballistic Cannon . | . . . . Launcher . | . . . . Special Weapon . | . . . . Impact Weapon . | . . . . Slashing Weapon 2 | . . . 2 Piercing Weapon . | . . . . Special Melee Weapon . | . . . . Unidentified Prototypes . | . . . . Parts Lost . | . . . . Power . | . . . . Propulsion . | . . . . Utility . | . . . . Weapon . | . . . . Highest Loss Streak . | . . . . Average Slot Usage (%) 97 | . 100 100 87 Engine 13 | . 14 14 11 Treads 26 | . 28 28 19 Device 1 | . . . 11 Storage 26 | . 28 28 22 Energy Gun 1 | . . . 9 Ballistic Gun 24 | . 28 28 10 Naked Turns . | . . . . Heaviest Build 30 | 13 25 25 30 Greatest Support 40 | 40 40 40 40 Greatest Overweight (x) 1 | . . . 1 Average Overweight (x) . | . . . . Largest Inventory Capacity 12 | 8 12 12 12 Average Capacity 11 | 5 11 12 12 Most Carried 12 | 4 12 12 12 Average Carried 9 | 2 8 11 11 Final Capacity 12 | 8 12 12 12 Final Carried 12 | 4 12 12 12 Class Distribution -------------------- 100% | Mutant Dominant Class ---------------- Mutant | -10/Materials Mutant | -10/Mines Mutant | -9/Materials Resources | -11 -10 -10 -9 ----------- Run | Scr Mat Min Mat Matter Collected 459 | 274 81 68 36 Remotely . | . . . . Salvage Created 494 | 98 322 38 36 Parts 31 | 3 19 7 2 Haulers Intercepted 1 | . 1 . . Recyclers Shooed 1 | . . 1 . Parts Field Recycled . | . . . . Retrieved Matter . | . . . . Parts Self-Destructed . | . . . . Prevented . | . . . . Kills | -11 -10 -10 -9 ------- Run | Scr Mat Min Mat Combat Hostiles Destroyed 8 | . 4 3 1 Guns 8 | . 4 3 1 Classes Destroyed 6 | 1 4 1 . Worker 1 | . 1 . . Hauler 1 | . 1 . . Recycler 2 | 1 1 . . Operator 1 | . 1 . . Swarmer 3 | . . 3 . Grunt 5 | . 4 . 1 Best Kill Streak 3 | 1 2 3 1 Combat Bots Only 3 | . 2 3 1 Max Kills in Single Turn 1 | 1 1 1 1 Gunslinging . | . . . . Exploded . | . . . . Melee . | . . . . Uniques/NPCs Destroyed . | . . . . Combat | -11 -10 -10 -9 -------- Run | Scr Mat Min Mat Damage Taken 434 | . 269 45 120 Core 65 | . 33 10 22 Absorbed by Shields . | . . . . Core Remaining (%) 91 | 100 . 82 . Volleys Fired 50 | 2 32 4 12 Largest 2 | 2 2 2 2 Hottest 70 | 40 40 40 70 Shots Fired 100 | 4 64 8 24 Gun 100 | 4 64 8 24 Cannon . | . . . . Launcher . | . . . . Special . | . . . . Kinetic 88 | 4 64 8 12 Thermal 12 | . . . 12 Explosive . | . . . . Electromagnetic . | . . . . Robot Hit Streak 18 | 2 18 11 13 Robot Miss Streak 6 | 1 1 . 6 Penetration Max . | . . . . Secondary Targets . | . . . . Shots Hit Robots 75 | 2 53 5 15 Core Hits 24 | 2 16 3 3 Critical Hits . | . . . . Critical Kills . | . . . . Critical Parts Destroyed . | . . . . Melee Attacks . | . . . . Impact . | . . . . Slashing . | . . . . Piercing . | . . . . Sneak Attacks . | . . . . Combat Hostiles . | . . . . Follow-up Attacks . | . . . . Damage Inflicted 614 | 19 407 52 136 Guns 612 | 19 405 52 136 Cannons . | . . . . Explosions . | . . . . Melee . | . . . . Ramming 2 | . 2 . . Kinetic 524 | 19 405 52 48 Thermal 88 | . . . 88 Explosive . | . . . . Electromagnetic . | . . . . Impact . | . . . . Slashing . | . . . . Piercing . | . . . . Highest Corruption . | . . . . Average Corruption . | . . . . Corruption Purged . | . . . . Overload Shots . | . . . . Overflow Damage . | . . . . Projectiles . | . . . . Explosions . | . . . . Melee . | . . . . Knockbacks . | . . . . Impact . | . . . . Kinetic . | . . . . Secondary . | . . . . Self-Inflicted Damage . | . . . . Shots . | . . . . Rammed 2 | . 1 . 1 Targets Rammed 2 | . 1 . 1 Kicked . | . . . . Crushed . | . . . . Highest Temperature 20 | . 12 . 20 Average Temperature 6 | . 7 . 5 Received Heat Transfer 210 | . 150 . 60 Siege Activations . | . . . . Robots Corrupted . | . . . . Combat Hostiles . | . . . . Parts Fried . | . . . . Impact Corruptions . | . . . . Robots Melted . | . . . . Combat Hostiles . | . . . . Parts Melted . | . . . . Heat Transferred 259 | . . . 259 Parts Sabotaged . | . . . . Parts Stolen . | . . . . Parts Stripped . | . . . . Power Chain Reactions . | . . . . Missiles Intercepted . | . . . . Alert | -11 -10 -10 -9 ------- Run | Scr Mat Min Mat Peak Influence 145 | 5 145 91 70 Average Influence 46 | 1 59 27 57 Maximum Alert Level . | . . . . Low Security (%) 100 | 100 100 100 100 Level 1 . | . . . . Level 2 . | . . . . Level 3 . | . . . . Level 4 . | . . . . Level 5 . | . . . . High Security . | . . . . Max Security . | . . . . Squads Dispatched 5 | . 4 . 1 Investigation 1 | . 1 . . Extermination . | . . . . Reinforcement 4 | . 3 . 1 Assault . | . . . . Garrison . | . . . . Intercept . | . . . . Construction Impeded . | . . . . Haulers Reinforced . | . . . . Stealth | -11 -10 -10 -9 --------- Run | Scr Mat Min Mat Distress Signals 2 | . 1 . 1 Communications Jammed . | . . . . Distress Signals . | . . . . Times Spotted 23 | . 14 3 6 Peak Tracking Total 7 | . 6 3 7 Tactical Retreats . | . . . . Traps | -11 -10 -10 -9 ------- Run | Scr Mat Min Mat Traps Triggered . | . . . . Indirectly . | . . . . Trap Hack Attempts . | . . . . Triggered . | . . . . Disarmed . | . . . . Reprogrammed . | . . . . Reused . | . . . . Traps Extracted . | . . . . Installed . | . . . . Triggered . | . . . . Machines | -11 -10 -10 -9 ---------- Run | Scr Mat Min Mat Machines Disabled . | . . . . Max in Single Turn . | . . . . Machines Sabotaged . | . . . . Garrisons Compromised . | . . . . Overloaded Fab Kills . | . . . . Fab Network Shutdowns . | . . . . Hacking | -11 -10 -10 -9 --------- Run | Scr Mat Min Mat Machines Accessed 2 | . 2 . . Terminals 2 | . 2 . . Fabricators . | . . . . Repair Stations . | . . . . Recycling Units . | . . . . Scanalyzers . | . . . . Garrison Access . | . . . . Total Hacks 5 | . 5 . . Successful 1 | . 1 . . Failed 4 | . 4 . . Catastrophic 3 | . 3 . . Database Lockouts . | . . . . Manual 3 | . 3 . . Terminals 5 | . 5 . . Fabricators . | . . . . Repair Stations . | . . . . Recycling Units . | . . . . Scanalyzers . | . . . . Garrison Access . | . . . . Terminal Hacks 1 | . 1 . . Recall Investigation 1 | . 1 . . Fabricator Hacks . | . . . . Repair Station Hacks . | . . . . Recycling Unit Hacks . | . . . . Scanalyzer . | . . . . Garrison Access Hacks . | . . . . Unauthorized Hacks . | . . . . Terminals . | . . . . Fabricators . | . . . . Repair Stations . | . . . . Recycling Units . | . . . . Scanalyzers . | . . . . Garrison Access . | . . . . Data Cores Recovered . | . . . . Used . | . . . . Hacking Detections 2 | . 2 . . Full Trace Events 1 | . 1 . . Feedback Events . | . . . . Feedback Blocked . | . . . . Robot Schematics Acquired . | . . . . Robots Built . | . . . . Matter . | . . . . Time . | . . . . Total Robot Build Rating . | . . . . Part Schematics Acquired . | . . . . Parts Built . | . . . . Matter . | . . . . Time . | . . . . Total Part Build Rating . | . . . . Parts Repaired . | . . . . Time . | . . . . Parts Recycled . | . . . . Recycled Matter . | . . . . Retrieved Matter . | . . . . Retrieved Components . | . . . . Parts Scanalyzed . | . . . . Part Schematics Acquired . | . . . . Parts Damaged . | . . . . Bothacking | -11 -10 -10 -9 ------------ Run | Scr Mat Min Mat Used RIF Installer . | . . . . Robots Hacked . | . . . . Non-combat . | . . . . Combat . | . . . . Robot Hacks Applied . | . . . . Relay Couplers Released . | . . . . Robots Rewired . | . . . . Allies Hacked . | . . . . Hacks Repelled . | . . . . Allies | -11 -10 -10 -9 -------- Run | Scr Mat Min Mat Total Allies . | . . . . Largest Group . | . . . . Highest-Rated Group . | . . . . Highest-Rated Ally . | . . . . Total Orders . | . . . . Ally Attacks . | . . . . Total Damage . | . . . . Kills . | . . . . Allies Corrupted . | . . . . Allies Melted . | . . . . Intel | -11 -10 -10 -9 ------- Run | Scr Mat Min Mat Robot Analysis Total . | . . . . Derelict Logs Recovered . | . . . . Drone Launches . | . . . . Drone Recoveries . | . . . . Exploration | -11 -10 -10 -9 ------------- Run | Scr Mat Min Mat Turns Passed 974 | 84 480 250 160 Spaces Moved 482 | 43 233 146 60 Core 3 | 3 . . . Treads 473 | 40 233 146 54 Legs 6 | . . . 6 Wheels . | . . . . Hover . | . . . . Flight . | . . . . Fastest Speed 50 | 50 160 160 150 Average Speed 159 | 152 160 160 159 Slowest Speed 160 | 160 160 160 160 Overloaded Moves . | . . . . Propulsion Burnouts . | . . . . Robots Hopped . | . . . . Cave-ins Triggered . | . . . . Exploration Rate (%) 22 | 4 35 43 8 Regions Visited 3 Branch Regions 1 Pre-discovered Areas . | . . . . Known Exits Taken . | . . . . Unknown Exits Taken 3 | 1 1 1 . Scrap Searched 1 | . . 1 . Spaces Dug . | . . . . Terrain Destroyed . | . . . . Melee . | . . . . Projectile . | . . . . AOE . | . . . . Actions | -11 -10 -10 -9 --------- Run | Scr Mat Min Mat Total 605 | 55 289 158 103 Wait 23 | . 12 1 10 Move 479 | 42 232 145 60 Hop . | . . . . Pick Up 19 | 4 8 2 5 Fast Attach 10 | 7 . . 3 Attach 3 | . . . 3 Detach . | . . . . Swap 6 | . 2 2 2 Drop 13 | . 2 4 7 Fire 50 | 2 32 4 12 Melee . | . . . . Ram . | . . . . Kick . | . . . . Crush 2 | . 1 . 1 Escape Stasis . | . . . . Rewire . | . . . . Trap . | . . . . Miscellaneous . | . . . . Route ------- -11/Scrapyard -10/Materials -10/Mines -9/Materials History --------- Turn | Location | Event 16 | -11/Scrapyard | Discovered new exit (range 14) 85 | -11/Scrapyard | Entered Materials 303 | -10/Materials | Build established: Mutant 557 | -10/Materials | Discovered new exit (range 5) 565 | -10/Materials | Entered Mines 751 | -10/Mines | A weapon hastily lodged in a ceiling crevice suddenly fell to the ground 775 | -10/Mines | Discovered new exit (range 7) 815 | -10/Mines | Entered Materials 815 | -9/Materials | Evolved 2 slots: Utility x2 975 | -9/Materials | Self-destructed Last Messages --------------- 00820_ ALERT: Hostiles spotted, dispatching reinforcements to Terminal M005. 00820_ O-16 Technician locks terminal. 00872_ Acquired Imp. Heat Sink. 00915_ G-34 Mercenary destroyed. 00922_ Dropped Lgt. Treads. 00923_ Acquired Aluminum Leg. 00924_ K-01 Serf collects debris. 00925_ Acquired 36 matter. 00928_ K-01 Serf collects debris. 00937_ Slammed into K-01 Serf. 00954_ Acquired Imp. Heat Sink. 00955_ Dropped Heat Sink. 00956_ Dropped Flail. 00956_ Dropped Lgt. Treads. 00959_ Dropped Med. Laser. 00960_ Dropped Lgt. Assault Rifle. 00963_ Acquired Axe. 00966_ Acquired Lgt. Assault Rifle. 00969_ Acquired Axe. Map ----- +----------------------------------------------------+ | ????????????????????????????????????? | | ????????????????????????????????????? | | ????????????????????????????????????? | | ????????????????????????????????????? | | ????????????????????????????????????? | | ????????????????????????????????????? | | ????????????????????????????????????? | | ????????#???????????????????????????? | | ???????? ???????????????????????????? | | ???????? ???? ??????????????????????? | | ???????? ???? ??????????????????????? | | ??????? "???? ####??????????????????? | | ??????? "???? ?????????????????? | | ??????? ""??? ???? ???????????? | | ??????? "???? ???] ???????????? | | ??????? "???? """? ] ???????????? | | ??????? ???# """ ??????????? | | #######+#???# """ ??????????? | | # ## ##### """ s ??????????? | | # # """ ??????????? | | # # s ?????????? | | # *# s ??????????? | | # + = #[ s###+##??????????????? | | # # #/= #???????????????????? | | # # #!= !!#???????????????????? | | # # #!!@ !!#???????????????????? | | # # ########???????????????????? | | ###### #??????????????????????????? | | ?????# #??????????????????????????? | | ?????# #??????????????????????????? | | ?????# #??????????????????????????? | | ?????# #??????????????????????????? | | ?????# #??????????????????????????? | | ?????# #??????????????????????????? | | ?????# ##########?????????????????? | | ?????# # #?????????????????? | | ?????# / """ #?????????????????? | | ?????# # """ #?????????????????? | | ?????# # """ ??????????????????? | | ?????# #? #?????????????????? | | ?????#####? #?????????????????? | | ???????????? #?????????????????? | | ????????????T" #?????????????????? | | ?????????????" #?????????????????? | | ?????????????######?????????????????? | | ????????????????????????????????????? | | ????????????????????????????????????? | | ????????????????????????????????????? | | ????????????????????????????????????? | | ????????????????????????????????????? | +----------------------------------------------------+ Best States ------------- Heat Dissipation 42 Energy Generation 10 Energy Capacity 125 Matter Stores 300 Matter Capacity 300 Sight Range 16 Terrain Scan Density 10 Evasion (%) 40 Recoil Reduction 2 Item Schematics ----------------- None Robot Schematics ------------------ None Fabricated ------------ Nothing Alien Tech Used ----------------- None Achievements -------------- None Challenges ------------ None Game ------ Seed RefineryCombatDiverter Manual? 0 Play Time 00:05:20 Cumulative 520.2 hours Start 2020.05.11 @ 10:31:28 End 2020.05.11 @ 10:37:08 Sessions 1 Manual Loads 0 Difficulty Rogue Special Mode None Game No. 849 Rogue 849 Adventurer 0 Explorer 0 Win Type - Total 48 Types 31/1/6/8/2/0/0 Lore% 94 Gallery% 93 Achievement% 81 Wizard Run 0 Options --------- ASCII 1 Keyboard 0 Movement Numpad Keybinds 0 Fullscreen 0 Font 14/SmallcapsGlow Map View 76x50 Tactical HUD 1 Map Filters NONE Filters NONE Steam 1 RUN: 8879122d-39d8-4686-be4b-f2627364f445